Cogmind - Beta 9.6 @@@ ROGUE MODE // 2020.06.05 @ 11:55:02 Player: OccultOnion Result: Destroyed by G-47 Trooper with Particle Gun Performance ------------- Evolutions (3) 1500 Regions Visited (5) 1000 Robots Destroyed (49) 245 Value Destroyed (1459) 1459 Prototype IDs (1) 20 Alien Tech Used (0) 0 Bonus (7) 7 TOTAL SCORE: 4231 Bonus ------- Follower Combat Kills 7 Cogmind --------- Core Integrity 0/700 Matter 221/300 Energy 151/160 System Corruption 1% Temperature Cool (21) Movement Treading (160) Location -7/Factory Parts ------- > --- POWER (2) -------- Light Nuclear Core > --- PROPULSION (4) --- Medium Treads Medium Treads Medium Treads Carbon-fiber Leg > --- UTILITY (5) ------ Large Storage Unit Weight Redist. System Particle Charger > --- WEAPON (2) ------- Advanced Assault Cannon > --- INVENTORY (10) --- Aluminum Leg VTOL Module Cesium-ion Thruster Small Storage Unit Flail Spear Peak State ------------ > --- POWER ------------ Ion Engine Light Ion Engine > --- PROPULSION ------- Aluminum Leg Aluminum Leg Improved Titanium Leg Improved Titanium Leg > --- UTILITY ---------- Large Storage Unit Weight Redist. System Advanced Visual Processing Unit Advanced Targeting Computer Improved Light Armor Plating > --- WEAPON ----------- High-powered Shotgun High-powered Shotgun > --- INVENTORY -------- Improved Deuterium Engine Improved Titanium Leg Armored Huge Wheel Cesium-ion Thruster Weight Redist. System Particle Charger High-powered Shotgun Grenade Launcher Flail [Rating: 33] Favorites ----------- Power Ion Engine Engine Ion Engine Power Core Light Nuclear Core Propulsion Aluminum Leg Treads Light Treads Leg Aluminum Leg Wheel Compact Wheel Hover Unit Hover Unit Flight Unit Cesium-ion Thruster Utility Advanced Visual Processing Unit Device Weight Redist. System Storage Large Storage Unit Processor Advanced Visual Processing Unit Protection Improved Light Armor Plating Weapon High-powered Shotgun Energy Gun Arc Projector Ballistic Gun High-powered Shotgun Ballistic Cannon Advanced Assault Cannon Launcher Grenade Launcher Impact Weapon Flail Build | -11 -10 -9 -9 -8 -7 ------- Run | Scr Mat Mat Min Mat Fac Slots Evolved 6 | . . 2 . 2 2 Power 1 | . . . . . 1 Propulsion 2 | . . 1 . 1 . Utility 3 | . . 1 . 1 1 Weapon . | . . . . . . Parts Attached 43 | . . 11 1 7 24 Power 6 | . . 1 . . 5 Engine 3 | . . 1 . . 2 Core 3 | . . . . . 3 Reactor . | . . . . . . Propulsion 17 | . . 5 . 5 7 Treads 6 | . . 2 . 1 3 Leg 6 | . . 2 . 2 2 Wheel 3 | . . 1 . . 2 Hover 1 | . . . . 1 . Flight 1 | . . . . 1 . Utility 10 | . . 4 . 2 4 Device 4 | . . 1 . 1 2 Storage 1 | . . 1 . . . Processor 2 | . . 1 . . 1 Hackware . | . . . . . . Protection 3 | . . 1 . 1 1 Artifact . | . . . . . . Weapon 10 | . . 1 1 . 8 Energy Gun 1 | . . . . . 1 Energy Cannon . | . . . . . . Ballistic Gun 5 | . . 1 1 . 3 Ballistic Cannon 1 | . . . . . 1 Launcher 1 | . . . . . 1 Special Weapon . | . . . . . . Impact Weapon 2 | . . . . . 2 Slashing Weapon . | . . . . . . Piercing Weapon . | . . . . . . Special Melee Weapon . | . . . . . . Unidentified Prototypes 1 | . . 1 . . . Parts Lost 29 | . . 6 . 1 22 Power 6 | . . 1 . . 5 Propulsion 10 | . . 2 . 1 7 Utility 6 | . . 2 . . 4 Weapon 7 | . . 1 . . 6 Highest Loss Streak 11 | . . 2 . 1 11 Average Slot Usage (%) 86 | . 85 92 88 98 75 Engine 9 | . 14 11 11 9 7 Treads 8 | . . 18 . 4 4 Leg 13 | . 28 2 22 19 16 Wheel 5 | . . 11 11 2 1 Hover 1 | . . . . 8 . Device 5 | . . 5 . 9 6 Storage 9 | . 14 11 11 9 7 Processor 10 | . . 10 11 9 11 Protection 3 | . . 3 . 8 3 Ballistic Gun 15 | . 28 19 22 18 8 Naked Turns . | . . . . . . Heaviest Build 34 | 12 12 32 27 30 34 Greatest Support 90 | 20 20 16 16 66 90 Greatest Overweight (x) 8 | . . 2 1 1 8 Average Overweight (x) . | . . . 1 . . Largest Inventory Capacity 10 | 6 6 10 10 10 10 Average Capacity 9 | 6 6 8 10 10 10 Most Carried 10 | 6 6 10 8 10 10 Average Carried 8 | 6 5 8 8 9 8 Final Capacity 10 | 6 6 10 10 10 10 Final Carried 10 | 6 6 9 8 10 6 Class Distribution -------------------- 83% | Mutant 16% | Scavenger-Mutant Dominant Class ---------------- Mutant | -10/Materials Mutant | -9/Materials Mutant | -9/Mines Mutant | -8/Materials Mutant | -7/Factory Resources | -11 -10 -9 -9 -8 -7 ----------- Run | Scr Mat Mat Min Mat Fac Matter Collected 1247 | 216 . 339 27 135 530 Remotely . | . . . . . . Salvage Created 1528 | 100 . 760 . 131 537 Parts 92 | 1 . 49 . 11 31 Haulers Intercepted 3 | . . 3 . . . Recyclers Shooed 2 | . . 2 . . . Parts Field Recycled . | . . . . . . Retrieved Matter . | . . . . . . Parts Self-Destructed . | . . . . . . Prevented . | . . . . . . Kills | -11 -10 -9 -9 -8 -7 ------- Run | Scr Mat Mat Min Mat Fac Combat Hostiles Destroyed 39 | . . 17 . 5 17 Melee 1 | . . . . . 1 Guns 32 | . . 17 . 5 10 Cannons 6 | . . . . . 6 Classes Destroyed 11 | 1 . 6 . 1 3 Worker 2 | . . . . 1 1 Tunneler 1 | . . 1 . . . Hauler 3 | . . 3 . . . Recycler 2 | 1 . . . . 1 Mechanic 1 | . . . . . 1 Watcher 1 | . . 1 . . . Swarmer 15 | . . 3 . 3 9 Grunt 16 | . . 10 . 2 4 Sentry 4 | . . 4 . . . Hunter 2 | . . . . . 2 Programmer 2 | . . . . . 2 Best Kill Streak 5 | 1 . 4 . 3 5 Combat Bots Only 4 | . . 4 . 3 4 Max Kills in Single Turn 3 | 1 . 3 . 1 1 Gunslinging 1 | . . 1 . . . Exploded . | . . . . . . Melee 1 | . . . . . 1 Uniques/NPCs Destroyed . | . . . . . . Combat | -11 -10 -9 -9 -8 -7 -------- Run | Scr Mat Mat Min Mat Fac Damage Taken 4435 | . 39 859 . 313 3224 Core 921 | . 10 169 . 41 701 Absorbed by Shields . | . . . . . . Core Remaining (%) 86 | 100 96 . 57 92 . Volleys Fired 172 | 4 5 63 . 16 84 Largest 2 | 2 2 2 . 2 2 Hottest 78 | 40 40 45 . 50 78 Shots Fired 252 | 8 10 105 . 32 97 Gun 235 | 8 10 105 . 32 80 Cannon 15 | . . . . . 15 Launcher 2 | . . . . . 2 Special . | . . . . . . Kinetic 242 | 8 10 105 . 32 87 Thermal . | . . . . . . Explosive 2 | . . . . . 2 Electromagnetic 8 | . . . . . 8 Robot Hit Streak 9 | 2 1 9 . 5 7 Robot Miss Streak 14 | 2 3 3 . 7 14 Penetration Max . | . . . . . . Secondary Targets 4 | . . 3 . . 1 Max Gunslinging Chain 1 | . . 1 . . 1 Shots Hit Robots 173 | 4 4 79 . 22 64 Core Hits 91 | 2 . 38 . 11 40 Critical Hits . | . . . . . . Critical Kills . | . . . . . . Critical Parts Destroyed . | . . . . . . Melee Attacks 13 | . . . . . 13 Impact 13 | . . . . . 13 Slashing . | . . . . . . Piercing . | . . . . . . Sneak Attacks 1 | . . . . . 1 Combat Hostiles . | . . . . . . Follow-up Attacks . | . . . . . . Damage Inflicted 3204 | 52 35 1354 . 244 1519 Guns 2410 | 52 35 1079 . 244 1000 Cannons 319 | . . . . . 319 Explosions 330 | . . 275 . . 55 Melee 130 | . . . . . 130 Ramming 15 | . . . . . 15 Kinetic 2685 | 52 35 1079 . 244 1275 Thermal . | . . . . . . Explosive 55 | . . . . . 55 Electromagnetic 319 | . . 275 . . 44 Impact 130 | . . . . . 130 Slashing . | . . . . . . Piercing . | . . . . . . Highest Corruption 1 | . . 1 1 . 1 Average Corruption 1 | . . 1 1 . 1 Corruption Purged . | . . . . . . Effects 9 | . . 3 1 . 5 Message Errors 3 | . . . 1 . 2 Data Loss (minor) 1 | . . 1 . . . Targeting Errors 4 | . . 2 . . 2 Weapon Failures 1 | . . . . . 1 Overload Shots . | . . . . . . Overflow Damage 29 | . . . . . 29 Projectiles . | . . . . . . Explosions . | . . . . . . Melee 29 | . . . . . 29 Knockbacks 2 | . . . . . 2 Impact 1 | . . . . . 1 Kinetic 1 | . . . . . 1 Secondary . | . . . . . . Self-Inflicted Damage 3 | . . . . . 3 Shots . | . . . . . . Rammed 7 | . . . . . 7 Targets Rammed 9 | . . . . . 9 Kicked 2 | . . . . . 2 Crushed . | . . . . . . Highest Temperature 20 | . . 20 . 1 15 Average Temperature 6 | . . 7 . 1 6 Received Heat Transfer 786 | . 21 387 . 63 315 Siege Activations . | . . . . . . Robots Corrupted . | . . . . . . Combat Hostiles . | . . . . . . Parts Fried 3 | . . 1 . . 2 Impact Corruptions 2 | . . . . . 2 Robots Melted . | . . . . . . Combat Hostiles . | . . . . . . Parts Melted . | . . . . . . Heat Transferred . | . . . . . . Parts Sabotaged . | . . . . . . Parts Stolen . | . . . . . . Parts Stripped . | . . . . . . Power Chain Reactions . | . . . . . . Missiles Intercepted . | . . . . . . Alert | -11 -10 -9 -9 -8 -7 ------- Run | Scr Mat Mat Min Mat Fac Peak Influence 290 | 5 18 290 112 185 247 Average Influence 121 | 3 14 113 112 135 140 Maximum Alert Level 1 | . . 1 . . 1 Low Security (%) 87 | 100 100 78 100 100 85 Level 1 12 | . . 21 . . 14 Level 2 . | . . . . . . Level 3 . | . . . . . . Level 4 . | . . . . . . Level 5 . | . . . . . . High Security . | . . . . . . Max Security . | . . . . . . Squads Dispatched 12 | . 1 4 . . 7 Investigation 6 | . 1 3 . . 2 Extermination 2 | . . . . . 2 Reinforcement 4 | . . 1 . . 3 Assault . | . . . . . . Garrison . | . . . . . . Intercept . | . . . . . . Construction Impeded . | . . . . . . Haulers Reinforced . | . . . . . . Stealth | -11 -10 -9 -9 -8 -7 --------- Run | Scr Mat Mat Min Mat Fac Distress Signals 4 | . . 4 . . . Communications Jammed . | . . . . . . Distress Signals . | . . . . . . Times Spotted 76 | . 3 23 . 11 39 Peak Tracking Total 7 | . 2 4 . 4 7 Tactical Retreats 5 | . . 1 . 1 3 Traps | -11 -10 -9 -9 -8 -7 ------- Run | Scr Mat Mat Min Mat Fac Traps Triggered 2 | . 1 . . . 1 Indirectly . | . . . . . . Trap Hack Attempts . | . . . . . . Triggered . | . . . . . . Disarmed . | . . . . . . Reprogrammed . | . . . . . . Reused . | . . . . . . Traps Extracted . | . . . . . . Installed . | . . . . . . Triggered . | . . . . . . Machines | -11 -10 -9 -9 -8 -7 ---------- Run | Scr Mat Mat Min Mat Fac Machines Disabled 4 | . . 3 . 1 . Max in Single Turn 1 | . . 1 . 1 . Machines Sabotaged . | . . . . . . Garrisons Compromised . | . . . . . . Overloaded Fab Kills . | . . . . . . Fab Network Shutdowns . | . . . . . . Hacking | -11 -10 -9 -9 -8 -7 --------- Run | Scr Mat Mat Min Mat Fac Machines Accessed 9 | . 1 4 . 2 2 Terminals 8 | . 1 4 . 1 2 Fabricators . | . . . . . . Repair Stations . | . . . . . . Recycling Units . | . . . . . . Scanalyzers 1 | . . . . 1 . Garrison Access . | . . . . . . Total Hacks 38 | . 2 14 . 16 6 Successful 24 | . 2 9 . 13 . Failed 14 | . . 5 . 3 6 Catastrophic 3 | . . 1 . . 2 Database Lockouts . | . . . . . . Manual 18 | . 2 9 . 4 3 Terminals 26 | . 2 14 . 4 6 Fabricators . | . . . . . . Repair Stations . | . . . . . . Recycling Units . | . . . . . . Scanalyzers 12 | . . . . 12 . Garrison Access . | . . . . . . Terminal Hacks 6 | . 1 5 . . . Alert Level 3 | . . 3 . . . Unreport Threat 1 | . . 1 . . . Locate Traps 1 | . . 1 . . . Recall Investigation 1 | . 1 . . . . Fabricator Hacks . | . . . . . . Repair Station Hacks . | . . . . . . Recycling Unit Hacks . | . . . . . . Scanalyzer 12 | . . . . 12 . Insert Component 6 | . . . . 6 . Analyze 6 | . . . . 6 . Garrison Access Hacks . | . . . . . . Unauthorized Hacks 6 | . 1 4 . 1 . Terminals 6 | . 1 4 . 1 . Botnet 5 | . 1 3 . 1 . Detonate 1 | . . 1 . . . Fabricators . | . . . . . . Repair Stations . | . . . . . . Recycling Units . | . . . . . . Scanalyzers . | . . . . . . Garrison Access . | . . . . . . Data Cores Recovered . | . . . . . . Used . | . . . . . . Hacking Detections 9 | . 1 4 . 2 2 Full Trace Events 5 | . . 3 . . 2 Feedback Events 1 | . . 1 . . . Corruption 1 | . . 1 . . . Feedback Blocked . | . . . . . . Robot Schematics Acquired . | . . . . . . Robots Built . | . . . . . . Matter . | . . . . . . Time . | . . . . . . Total Robot Build Rating . | . . . . . . Part Schematics Acquired 6 | . . . . 6 . Parts Built . | . . . . . . Matter . | . . . . . . Time . | . . . . . . Total Part Build Rating . | . . . . . . Parts Repaired . | . . . . . . Time . | . . . . . . Parts Recycled . | . . . . . . Recycled Matter . | . . . . . . Retrieved Matter . | . . . . . . Retrieved Components . | . . . . . . Parts Scanalyzed 6 | . . . . 6 . Part Schematics Acquired 6 | . . . . 6 . Parts Damaged . | . . . . . . Bothacking | -11 -10 -9 -9 -8 -7 ------------ Run | Scr Mat Mat Min Mat Fac Used RIF Installer . | . . . . . . Robots Hacked . | . . . . . . Non-combat . | . . . . . . Combat . | . . . . . . Robot Hacks Applied . | . . . . . . Relay Couplers Released . | . . . . . . Robots Rewired . | . . . . . . Allies Hacked . | . . . . . . Hacks Repelled . | . . . . . . Allies | -11 -10 -9 -9 -8 -7 -------- Run | Scr Mat Mat Min Mat Fac Total Allies 3 | . . . 3 . . Largest Group 3 | . . . 3 1 . Highest-Rated Group 40 | . . . 40 8 . Highest-Rated Ally 16 | . . . 16 8 . Total Orders . | . . . . . . Ally Attacks 3 | . . . . 3 . Total Damage 12 | . . . . 12 . Kills 1 | . . . . 1 . Allies Corrupted . | . . . . . . Allies Melted . | . . . . . . Intel | -11 -10 -9 -9 -8 -7 ------- Run | Scr Mat Mat Min Mat Fac Robot Analysis Total . | . . . . . . Derelict Logs Recovered . | . . . . . . Drone Launches . | . . . . . . Drone Recoveries . | . . . . . . Exploration | -11 -10 -9 -9 -8 -7 ------------- Run | Scr Mat Mat Min Mat Fac Turns Passed 2126 | 26 105 705 107 377 806 Spaces Moved 1276 | 13 75 466 97 214 411 Core 1 | . . . . . 1 Treads 64 | . . . . . 64 Legs 498 | 13 75 5 . 153 252 Wheels 713 | . . 461 97 61 94 Hover . | . . . . . . Flight . | . . . . . . Fastest Speed 90 | 120 120 100 110 110 90 Average Speed 119 | 120 120 107 110 136 125 Slowest Speed 450 | 120 120 180 110 150 450 Overloaded Moves . | . . . . . . Propulsion Burnouts . | . . . . . . Robots Hopped . | . . . . . . Cave-ins Triggered . | . . . . . . Exploration Rate (%) 21 | 2 19 44 32 20 11 Regions Visited 5 Branch Regions 1 Pre-discovered Areas . | . . . . . . Known Exits Taken . | . . . . . . Unknown Exits Taken 5 | 1 1 1 1 1 . Scrap Searched 1 | . . . 1 . . Spaces Dug . | . . . . . . Terrain Destroyed 7 | . . . . . 7 Melee . | . . . . . . Projectile 1 | . . . . . 1 AOE 6 | . . . . . 6 Actions | -11 -10 -9 -9 -8 -7 --------- Run | Scr Mat Mat Min Mat Fac Total 1623 | 16 81 577 97 268 584 Wait 51 | . . 13 . 18 20 Move 1271 | 12 74 465 96 213 411 Hop . | . . . . . . Pick Up 48 | . 1 17 . 10 20 Fast Attach . | . . . . . . Attach 33 | . . 7 1 4 21 Detach . | . . . . . . Swap 11 | . . 5 . 3 3 Drop 15 | . 1 7 . 4 3 Fire 172 | 4 5 63 . 16 84 Melee 13 | . . . . . 13 Ram 3 | . . . . . 3 Kick 4 | . . . . . 4 Crush 2 | . . . . . 2 Escape Stasis . | . . . . . . Rewire . | . . . . . . Trap . | . . . . . . Miscellaneous . | . . . . . . Route ------- -11/Scrapyard -10/Materials -9/Materials (discovered 2 exits: *Mat / [*Min]) -9/Mines -8/Materials -7/Factory History --------- Turn | Location | Event 13 | -11/Scrapyard | Discovered new exit (range 3) 27 | -11/Scrapyard | Entered Materials 129 | -10/Materials | Discovered new exit (range 3) 132 | -10/Materials | Entered another Materials area 132 | -9/Materials | Evolved 2 slots: Propulsion x1, Utility x1 303 | -9/Materials | Build established: Mutant 481 | -9/Materials | Discovered new exit (range 10) 804 | -9/Materials | Discovered new exit (range 8) 837 | -9/Materials | Entered Mines 865 | -9/Mines | Assisted by bots powering up and referring to "LRC-V3" 940 | -9/Mines | Discovered new exit (range 5) 944 | -9/Mines | Entered Materials 944 | -8/Materials | Accompanied by 1 ally 944 | -8/Materials | Evolved 2 slots: Propulsion x1, Utility x1 1303 | -8/Materials | Discovered new exit (range 10) 1321 | -8/Materials | Entered Factory 1321 | -7/Factory | Evolved 2 slots: Power x1, Utility x1 1634 | -7/Factory | Build established: Scavenger-Mutant 1808 | -7/Factory | Lost 11 parts (3p4n1u3w) 1916 | -7/Factory | Core integrity fell below 50% 1937 | -7/Factory | Lost 3 parts (1p1n1w) 1951 | -7/Factory | Core integrity fell below 20% 2005 | -7/Factory | Build established: Mutant 2006 | -7/Factory | Lost 6 parts (1p2n2u1w) 2127 | -7/Factory | Destroyed by G-47 Trooper with Particle Gun Last Messages --------------- 02023_ G-47 Trooper destroyed. 02040_ Acquired Aluminum Leg. 02042_ R-06 Scavenger collects VTOL Module. 02045_ Acquired 9 matter. 02046_ Acquired 28 matter. 02047_ R-06 Scavenger collects Particle Gun. 02048_ O-16 Technician: "IFF HANDSHAKE FAILED. SECURING TERMINAL." 02051_ K-01 Serf cleans the Fusion Modulator. 02053_ R-06 Scavenger collects VTOL Module. 02055_ ALERT: Hostiles spotted, dispatching reinforcements to Terminal F020. 02056_ K-01 Serf collects debris. 02071_ ALERT: Rogue bot located, Programmers report to Factory Zone 7G. 02071_ K-01 Serf collects debris. 02071_ Acquired Spear. 02093_ U-05 Engineer lays Concrete. 02107_ K-01 Serf destroyed. 02112_ Grenade Launcher destroyed. 02113_ P-60 Hacker destroyed. 02124_ U-05 Engineer lays Concrete. Map ----- +----------------------------------------------------+ | #??# "T """" + #?????????# #???????? | | #??# "" """" ####### #?????????# #???????? | | #??# "" #?????# #?????????# #???????? | | #??# #?????# #?????????# #???????? | | ###########+############ ########### ###?????? | | #?????? | | ###???? | | +??? | | """ """ ####??? | | """ """ #?????? | | ####+#############+######/##### """ """ #?????? | | # ?????????????????# % ## ####### | | # ""?????????????????# ## """ | | # ""?????????????????# ## """ | | # ""?????????????????# + """ | | # ?????????????????# ## | | # ""?????????????????# ## | | # ""?????????????????# ################ | | # ???????????????????# #??????????????# | | # ???????????????????# #????########### | | ####???????????????????# #????# | | ???????????????????????# #????# | | ???????????????????????# #????# | | ???????????????????############???# ####### | | ???????????????????# # ##;##### #?????###+## | | ???????????????????# @ gu uu #??????????? | | ???????????????????# g #??????????? | | ???????????????????# *% uu #??????????? | | ???????????????????# ! ##########??????????? | | ???????????????????## ??????????????????? | | ????????????????????#u ## """"?????????????????? | | ??????????????????? ?# """" ????????????????? | | ?????????????????? ?# """" ???????????????? | | ???????????????? ?# """"??#??????????????? | | ????????????????#######??# ""???????????????????? | | ?????????????????????????# "????????????????????? | | ?????????????????????????# "????????????????????? | | ?????????????????????????# ????????????????????? | | ?????????????????????????####????????????????????? | | ?????????????????????????????????????????????????? | | ?????????????????????????????????????????????????? | | ?????????????????????????????????????????????????? | | ?????????????????????????????????????????????????? | | ?????????????????????????????????????????????????? | | ?????????????????????????????????????????????????? | | ?????????????????????????????????????????????????? | | ?????????????????????????????????????????????????? | | ?????????????????????????????????????????????????? | | ?????????????????????????????????????????????????? | | ?????????????????????????????????????????????????? | +----------------------------------------------------+ Best States ------------- Heat Dissipation 34 Energy Generation 16 Energy Capacity 290 Matter Stores 300 Matter Capacity 300 Sight Range 20 Terrain Scan Density 10 Additional Mass Support 6 Armor Coverage 225 Evasion (%) 40 Targeting Accuracy 8 Recoil Reduction 3 Particle Charging 15 Item Schematics ----------------- Cesium-ion Thruster | -8/Materials | Scanalyzed Hpw. Shotgun | -8/Materials | Scanalyzed Grenade Launcher | -8/Materials | Scanalyzed Weight Redist. System | -8/Materials | Scanalyzed Ion Engine | -8/Materials | Scanalyzed Adv. Targeting Computer | -8/Materials | Scanalyzed Robot Schematics ------------------ None Fabricated ------------ Nothing Alien Tech Used ----------------- None Achievements -------------- None Challenges ------------ None Game ------ Seed ChainMetafiberAutogun Manual? 0 Play Time 00:21:21 Cumulative 60.7 hours Start 2020.06.05 @ 11:33:50 End 2020.06.05 @ 11:55:02 Sessions 1 Manual Loads 0 Difficulty Rogue Special Mode None Game No. 143 Rogue 143 Adventurer 0 Explorer 0 Win Type - Total 0 Types 0/0/0/0/0/0/0 Lore% 31 Gallery% 50 Achievement% 32 Wizard Run 0 Options --------- ASCII 0 Keyboard 1 Movement Numpad Keybinds 0 Fullscreen 2 Font 18/SmallcapsGlow Map View 76x50 Tactical HUD 1 Map Filters NONE Filters NONE Steam 1 RUN: 72f6aef7-dff3-4831-93b8-6f181c4bd622